bitfinex/quotes_SOLUSD_20250604
["timestamp","ask_amount","ask_price","bid_price","bid_amount"]
[1749060055673,15.73596269,156.16,156.12,15.73596269]
[1749060056610,15.73596269,156.16,156.11,15.73596269]
[1749060056884,15.73596269,156.16,156.12,15.73596269]
[1749060058064,15.73596269,156.16,156.11,15.73596269]
[1749060058270,17.39656269,156.16,156.11,15.73596269]
[1749060058783,15.73596269,156.15,156.11,15.73596269]
[1749060061388,17.39656269,156.16,156.11,15.73596269]
[1749060061574,17.39656269,156.16,156.12,15.73596269]
[1749060061575,1.6606,156.16,156.12,15.73596269]
[1749060061758,17.39656269,156.16,156.11,15.73596269]
[1749060061957,15.73596269,156.15,156.11,15.73596269]
[1749060062689,15.73596269,156.15,156.1,15.73596269]
[1749060063071,15.73596269,156.15,156.11,15.73596269]
[1749060063669,17.39656269,156.16,156.11,15.73596269]
[1749060063991,174.1,156.18,156.13,15.73596269]
[1749060064295,15.73596269,156.17,156.13,15.73596269]
[1749060064496,15.73596269,156.17,156.12,15.73596269]
[1749060064674,15.73596269,156.16,156.12,15.73596269]
[1749060066170,15.73596269,156.17,156.12,15.73596269]
[1749060067374,15.73596269,156.17,156.13,15.73596269]
[1749060067695,1.6624,156.2,156.14,15.73596269]
[1749060067877,26.0,156.16,156.14,15.73596269]
[1749060068400,26.0,156.16,156.13,18.79181043]
[1749060068401,26.0,156.16,156.15,15.73596269]
[1749060068695,26.0,156.16,156.14,15.73596269]
[1749060068912,41.73596269,156.18,156.13,18.79181043]
[1749060069113,41.73596269,156.18,156.14,15.73596269]
[1749060070102,48.12856269,156.15,156.01,108.25547688]
[1749060070278,48.12856269,156.15,156.07,15.73596269]
[1749060070279,15.73596269,156.12,156.07,15.73596269]
[1749060070481,15.73596269,156.11,156.07,15.73596269]
[1749060071000,15.73596269,156.11,156.04,18.79181043]
[1749060071168,15.73596269,156.11,156.07,15.73596269]
[1749060071368,180.4926,156.15,156.09,15.73596269]
[1749060071586,180.4926,156.15,156.1,15.73596269]
[1749060071795,15.73596269,156.12,156.08,34.52777312]
[1749060071998,15.73596269,156.12,156.08,0.14216157]
[1749060072171,15.73596269,156.11,156.08,0.14216157]
[1749060072993,15.73596269,156.12,156.07,34.38561155]
[1749060073398,15.73596269,156.12,156.08,15.73596269]
[1749060073599,180.4926,156.15,156.09,15.73596269]
[1749060073781,15.73596269,156.13,156.09,15.73596269]
[1749060075702,15.73596269,156.13,156.08,15.73596269]
[1749060076002,15.73596269,156.12,156.08,15.73596269]
[1749060076388,15.73596269,156.13,156.08,15.73596269]
[1749060077302,15.73596269,156.12,156.08,15.73596269]
[1749060077995,15.73596269,156.12,156.07,15.73596269]
[1749060078401,15.73596269,156.11,156.05,26.28432314]
[1749060078586,15.73596269,156.1,156.06,18.64964886]
[1749060079307,15.73596269,156.1,156.05,0.28432314]
[1749060079497,15.73596269,156.1,156.05,16.02028583]
[1749060080095,15.73596269,156.1,156.06,15.73596269]
[1749060080490,15.73596269,156.11,156.07,15.73596269]
[1749060081017,15.73596269,156.11,156.06,15.73596269]
[1749060081196,15.73596269,156.1,156.06,15.73596269]
[1749060082713,26.0,156.12,156.07,15.73596269]
[1749060082891,26.0,156.12,156.08,15.73596269]
[1749060083093,15.73596269,156.13,156.09,15.73596269]
[1749060083322,41.73596269,156.14,156.09,15.73596269]
[1749060083822,15.73596269,156.13,156.09,15.73596269]
[1749060085520,15.73596269,156.12,156.05,18.933972]
[1749060085820,15.73596269,156.12,156.08,15.73596269]
[1749060086607,15.73596269,156.13,156.09,15.73596269]
[1749060088326,15.73596269,156.14,156.1,15.73596269]
[1749060088823,154.4926,156.15,156.1,15.73596269]
[1749060088991,170.22856269,156.15,156.1,15.73596269]
[1749060089189,15.73596269,156.15,156.1,15.73596269]
[1749060089698,27.5028,156.17,156.12,15.73596269]
[1749060089894,17.23876269,156.17,156.13,15.73596269]
[1749060090198,148.1,156.18,156.13,15.73596269]
[1749060090199,15.73596269,156.18,156.13,15.73596269]
[1749060090398,6.6431,156.19,156.14,15.73596269]
[1749060090600,15.73596269,156.18,156.14,15.73596269]
[1749060090800,15.73596269,156.18,156.13,15.73596269]
[1749060092727,15.73596269,156.17,156.13,15.73596269]
[1749060093407,32.6431,156.19,156.13,15.73596269]
[1749060093722,15.73596269,156.17,156.13,15.73596269]
[1749060094714,15.73596269,156.18,156.13,15.73596269]
[1749060095308,15.73596269,156.18,156.14,15.73596269]
[1749060095631,15.73596269,156.17,156.13,15.73596269]
[1749060096006,15.73596269,156.16,156.12,15.73596269]
[1749060096414,15.73596269,156.17,156.12,15.73596269]
[1749060096740,15.73596269,156.16,156.1,18.64964886]
[1749060096903,15.73596269,156.16,156.12,15.73596269]
[1749060097515,15.73596269,156.16,156.11,0.14216157]
[1749060097828,15.73596269,156.16,156.12,15.73596269]
[1749060099114,32.6431,156.19,156.13,15.73596269]
[1749060099411,15.73596269,156.17,156.13,15.73596269]
[1749060105643,163.83596269,156.18,156.13,15.73596269]
[1749060105811,163.83596269,156.18,156.1,18.64964886]
[1749060106013,163.83596269,156.18,156.13,15.73596269]
[1749060106219,148.1,156.18,156.15,15.73596269]
[1749060107025,148.1,156.18,156.12,0.28432314]
[1749060107228,148.1,156.18,156.15,15.73596269]
[1749060108717,26.0,156.16,156.15,15.73596269]
[1749060110442,148.1,156.18,156.15,34.38561155]
[1749060110642,148.1,156.18,156.17,15.73596269]
[1749060110816,26.0,156.19,156.17,15.73596269]
[1749060111219,26.0,156.2,156.17,15.73596269]
[1749060111944,26.0,156.2,156.18,15.73596269]
[1749060112633,41.73596269,156.21,156.16,18.79181043]
[1749060112829,41.73596269,156.21,156.16,34.52777312]
[1749060113026,15.73596269,156.2,156.15,15.73596269]
[1749060113764,15.73596269,156.16,156.09,1.589]
[1749060113931,15.73596269,156.16,156.11,15.73596269]
[1749060114330,15.73596269,156.16,156.12,15.73596269]
[1749060116027,15.73596269,156.15,156.11,15.73596269]
[1749060116337,15.73596269,156.16,156.11,15.73596269]
[1749060118064,15.73596269,156.14,156.1,15.87812426]
[1749060118721,15.73596269,156.15,156.1,15.87812426]
[1749060118921,26.0,156.14,156.1,15.87812426]
[1749060119320,26.0,156.14,156.11,15.73596269]
[1749060119524,26.0,156.14,156.1,0.14216157]
[1749060119525,26.0,156.13,156.12,15.73596269]
[1749060119955,26.0,156.13,156.11,15.73596269]
[1749060122844,26.0,156.13,156.12,15.73596269]
[1749060124660,26.0,156.14,156.08,19.21829514]
[1749060124862,26.0,156.14,156.13,15.73596269]
[1749060125249,6.4963,156.17,156.13,15.73596269]
[1749060125562,26.0,156.15,156.14,15.73596269]
[1749060126947,26.0,156.15,156.13,15.73596269]
[1749060127261,26.0,156.15,156.1,0.14216157]
[1749060127460,41.73596269,156.17,156.13,15.73596269]
[1749060129062,26.0,156.17,156.13,15.73596269]
[1749060129877,41.73596269,156.17,156.13,15.73596269]
[1749060132179,15.73596269,156.17,156.13,15.73596269]
[1749060134488,15.73596269,156.18,156.13,15.73596269]
[1749060137460,15.73596269,156.18,156.14,15.73596269]
[1749060137766,15.73596269,156.17,156.13,15.73596269]
[1749060139783,15.73596269,156.15,156.1,0.14216157]
[1749060140084,1.5129,156.19,156.1,0.14216157]
[1749060140085,15.73596269,156.14,156.1,34.52777312]
[1749060140282,15.73596269,156.15,156.11,15.73596269]
[1749060140588,15.73596269,156.16,156.12,15.73596269]
[1749060140755,26.0,156.17,156.12,15.73596269]
[1749060140956,41.73596269,156.17,156.12,15.73596269]
[1749060141378,15.73596269,156.18,156.13,15.73596269]
[1749060141553,26.0,156.19,156.15,15.73596269]
[1749060141753,148.1,156.2,156.16,15.73596269]
[1749060142000,15.73596269,156.19,156.15,15.73596269]
[1749060142484,163.83596269,156.2,156.15,15.73596269]
[1749060144284,163.83596269,156.2,156.13,0.14216157]
[1749060144285,148.1,156.2,156.16,15.73596269]
[1749060145076,148.1,156.2,156.17,15.73596269]
[1749060148597,148.1,156.2,156.18,15.73596269]
[1749060148805,15.73596269,156.24,156.19,15.73596269]
[1749060149298,15.73596269,156.22,156.18,15.73596269]
[1749060149508,15.73596269,156.22,156.17,15.73596269]
[1749060150102,15.73596269,156.21,156.17,15.73596269]
[1749060150271,15.73596269,156.22,156.17,15.73596269]
[1749060150977,15.73596269,156.21,156.17,15.73596269]
[1749060151179,15.73596269,156.21,156.16,15.73596269]
[1749060151565,15.73596269,156.21,156.17,15.73596269]
[1749060153380,32.2122,156.25,156.17,15.73596269]
[1749060153566,32.2122,156.25,156.15,0.14216157]
[1749060153567,15.73596269,156.21,156.15,0.14216157]
[1749060154075,15.73596269,156.21,156.17,15.73596269]
[1749060154486,32.2122,156.25,156.17,15.73596269]
[1749060154687,15.73596269,156.21,156.17,15.73596269]
[1749060155691,148.1,156.24,156.17,15.73596269]
[1749060155991,15.73596269,156.21,156.17,15.73596269]
[1749060156164,15.73596269,156.22,156.18,15.73596269]
[1749060158190,15.73596269,156.22,156.17,15.73596269]
[1749060158505,15.73596269,156.22,156.18,15.73596269]
[1749060158992,15.73596269,156.22,156.17,15.73596269]
[1749060161611,15.73596269,156.21,156.17,15.73596269]
[1749060161788,15.73596269,156.2,156.15,0.14216157]
[1749060161979,15.73596269,156.2,156.15,15.87812426]
[1749060162187,163.83596269,156.24,156.12,18.64964886]
[1749060162188,15.73596269,156.17,156.12,18.64964886]
[1749060162404,148.1,156.2,156.14,15.73596269]
[1749060162708,15.73596269,156.18,156.14,15.73596269]
[1749060162894,15.73596269,156.18,156.12,18.64964886]
[1749060162895,15.73596269,156.18,156.13,15.87812426]
[1749060163097,148.1,156.2,156.12,18.64964886]
[1749060163098,15.73596269,156.15,156.12,18.64964886]
[1749060163288,15.73596269,156.15,156.1,41.73596269]
[1749060163473,15.73596269,156.15,156.11,15.73596269]
[1749060164304,15.73596269,156.16,156.12,15.73596269]
[1749060164482,15.73596269,156.19,156.14,15.73596269]
[1749060164680,154.5244,156.2,156.15,15.73596269]
[1749060164681,170.26036269,156.2,156.15,15.73596269]
[1749060165791,170.26036269,156.2,156.16,15.73596269]
[1749060165981,26.0,156.21,156.18,15.73596269]
[1749060166180,26.0,156.21,156.19,15.73596269]
[1749060167504,15.73596269,156.23,156.19,15.73596269]
[1749060171092,180.321,156.24,156.19,15.73596269]
[1749060171280,196.05696269,156.24,156.19,15.73596269]
[1749060171488,15.73596269,156.23,156.19,15.73596269]
[1749060171688,15.73596269,156.23,156.18,15.73596269]
[1749060172309,15.73596269,156.22,156.18,15.73596269]
[1749060173915,15.73596269,156.22,156.17,15.73596269]
[1749060176886,15.73596269,156.22,156.17,41.73596269]
[1749060177088,163.83596269,156.24,156.2,15.73596269]
[1749060178192,163.83596269,156.24,156.19,15.73596269]
[1749060178815,148.1,156.24,156.19,15.73596269]
[1749060179018,15.73596269,156.23,156.19,15.73596269]
[1749060181108,163.83596269,156.24,156.19,15.73596269]
[1749060181515,15.73596269,156.22,156.17,41.73596269]
[1749060181717,15.73596269,156.22,156.17,15.73596269]
[1749060182019,15.73596269,156.23,156.18,15.73596269]
[1749060184327,163.83596269,156.24,156.19,15.73596269]
[1749060185207,163.83596269,156.24,156.16,18.79181043]
[1749060185208,15.73596269,156.23,156.18,15.73596269]
[1749060186606,148.1,156.24,156.2,15.73596269]
[1749060187029,163.83596269,156.24,156.18,15.73596269]
[1749060187711,163.83596269,156.24,156.19,15.73596269]
[1749060188914,163.83596269,156.24,156.17,0.14216157]
[1749060188915,148.1,156.24,156.2,15.73596269]
[1749060189109,148.1,156.24,156.21,15.73596269]
[1749060189321,148.1,156.24,156.22,15.73596269]
[1749060193937,0.1206096,156.27,156.23,15.73596269]
[1749060194251,0.1206096,156.27,156.24,15.73596269]
[1749060195045,0.1206096,156.27,156.25,15.73596269]
[1749060195716,0.1206096,156.27,156.24,15.73596269]
[1749060199253,0.1206096,156.27,156.2,44.933972]
[1749060199452,0.1206096,156.27,156.24,15.73596269]
[1749060202029,15.73596269,156.26,156.22,15.73596269]
[1749060202241,15.73596269,156.25,156.2,15.73596269]
[1749060202757,15.73596269,156.24,156.18,18.64964886]
[1749060202961,15.73596269,156.24,156.09,20.0]
[1749060202962,15.73596269,156.2,156.13,0.14216157]
[1749060203264,26.0,156.23,156.12,0.14216157]
[1749060203265,15.73596269,156.17,156.12,0.14216157]
[1749060203436,15.73596269,156.17,156.13,15.73596269]
[1749060204337,15.73596269,156.17,156.13,0.14216157]
[1749060204541,15.73596269,156.17,156.13,15.87812426]
[1749060205050,15.73596269,156.18,156.13,15.73596269]
[1749060205252,15.73596269,156.18,156.14,15.73596269]
[1749060206958,15.73596269,156.18,156.13,15.73596269]
[1749060207135,15.73596269,156.17,156.13,15.73596269]
[1749060208153,15.73596269,156.18,156.13,15.73596269]
[1749060209053,15.73596269,156.18,156.14,15.73596269]
[1749060209442,15.73596269,156.19,156.14,15.73596269]
[1749060210932,26.0,156.2,156.15,15.73596269]
[1749060211139,41.73596269,156.2,156.15,15.73596269]
[1749060211670,15.73596269,156.19,156.15,15.73596269]
[1749060212644,26.0,156.19,156.15,15.73596269]
[1749060213163,26.0,156.19,156.16,15.73596269]
[1749060213363,15.73596269,156.21,156.17,15.73596269]
[1749060213563,148.1,156.22,156.17,0.14216157]
[1749060213736,15.73596269,156.25,156.2,15.73596269]
[1749060214156,15.73596269,156.25,156.21,15.73596269]
[1749060218362,15.73596269,156.25,156.17,0.28432314]
[1749060218363,15.73596269,156.25,156.2,15.73596269]
[1749060218543,15.73596269,156.24,156.2,15.73596269]
[1749060218962,15.73596269,156.24,156.19,15.73596269]
[1749060220064,15.73596269,156.24,156.2,15.73596269]
[1749060220535,154.2357,156.26,156.2,15.73596269]
[1749060220536,15.73596269,156.25,156.2,15.73596269]
[1749060221247,15.73596269,156.25,156.18,18.64964886]
[1749060221442,15.73596269,156.24,156.19,34.52777312]
[1749060221638,15.73596269,156.24,156.2,15.73596269]
[1749060224265,15.73596269,156.24,156.18,0.28432314]
[1749060224438,15.73596269,156.24,156.2,15.73596269]
[1749060231656,15.73596269,156.21,156.14,44.79181043]
[1749060231965,15.73596269,156.21,156.17,15.73596269]
[1749060232574,41.73596269,156.23,156.18,15.73596269]
[1749060232771,26.0,156.23,156.18,15.73596269]
[1749060232974,41.73596269,156.23,156.18,15.73596269]
[1749060233473,41.73596269,156.23,156.15,0.14216157]
[1749060233670,41.73596269,156.23,156.18,15.73596269]
[1749060234069,15.73596269,156.22,156.18,15.73596269]
[1749060234578,26.0,156.25,156.19,15.73596269]
[1749060234579,15.73596269,156.23,156.19,15.73596269]
[1749060235263,26.0,156.25,156.19,15.73596269]
[1749060235659,41.73596269,156.25,156.21,15.73596269]
[1749060236580,163.83596269,156.26,156.22,15.73596269]
[1749060237482,0.1206096,156.27,156.23,15.73596269]
[1749060237779,15.85657229,156.27,156.23,15.73596269]
[1749060238882,15.73596269,156.26,156.22,34.52777312]
[1749060239956,15.85657229,156.27,156.23,15.73596269]
[1749060243459,16.24217229,156.27,156.23,15.73596269]
[1749060245984,0.5062096,156.27,156.24,15.73596269]
[1749060248859,0.5062096,156.27,156.25,15.73596269]
[1749060249063,0.5062096,156.27,156.26,15.73596269]
[1749060251075,0.5062096,156.27,156.26,34.66993469]
[1749060252692,0.5062096,156.27,156.23,32.6299]
[1749060252890,0.5062096,156.27,156.26,41.73596269]
[1749060260705,0.5062096,156.27,156.26,60.66993469]
[1749060265296,0.5062096,156.27,156.26,60.95425783]
[1749060267306,0.5062096,156.27,156.26,66.1906746]
[1749060274725,25.70263236,156.38,156.3,26.0]
[1749060274892,25.70263236,156.38,156.34,15.73596269]
[1749060275089,15.73596269,156.37,156.33,15.73596269]
[1749060275313,15.73596269,156.36,156.32,15.73596269]
[1749060275805,15.73596269,156.36,156.3,26.0]
[1749060276005,15.73596269,156.31,156.25,0.14216157]
[1749060276201,15.73596269,156.29,156.25,15.87812426]
[1749060276597,15.73596269,156.3,156.26,15.73596269]
[1749060277500,15.73596269,156.3,156.25,15.87812426]
[1749060278297,1.5208,156.34,156.29,26.0]
[1749060278503,1.5208,156.34,156.31,15.73596269]
[1749060279201,1.5208,156.34,156.3,15.73596269]
[1749060279923,17.25676269,156.34,156.29,41.73596269]
[1749060280810,15.73596269,156.33,156.29,41.73596269]
[1749060280999,15.73596269,156.33,156.28,15.73596269]
[1749060281201,1.5208,156.34,156.26,0.28432314]
[1749060281202,15.73596269,156.32,156.26,0.28432314]
[1749060281401,15.73596269,156.32,156.27,15.73596269]
[1749060281914,15.73596269,156.32,156.28,15.73596269]
[1749060282928,1.5208,156.34,156.27,15.73596269]
[1749060283237,15.73596269,156.31,156.27,15.73596269]
[1749060284708,15.73596269,156.31,156.26,15.73596269]
[1749060287106,15.73596269,156.3,156.26,15.73596269]
[1749060288007,15.73596269,156.3,156.26,18.79181043]
[1749060289010,15.73596269,156.29,156.25,18.933972]
[1749060290177,15.73596269,156.29,156.25,16.02028583]
[1749060291610,15.73596269,156.3,156.25,34.66993469]
[1749060292842,15.73596269,156.32,156.27,15.73596269]
[1749060293148,26.0,156.33,156.27,15.73596269]
[1749060293345,15.73596269,156.32,156.27,15.73596269]
[1749060293512,26.0,156.33,156.27,15.73596269]
[1749060293710,15.73596269,156.32,156.27,15.73596269]
[1749060295148,15.73596269,156.32,156.28,15.73596269]
[1749060295636,15.73596269,156.31,156.26,15.73596269]
[1749060296246,15.73596269,156.31,156.27,15.73596269]
[1749060296440,1.5208,156.34,156.27,15.73596269]
[1749060296667,15.73596269,156.32,156.27,15.73596269]
[1749060297360,15.73596269,156.31,156.26,15.73596269]
[1749060298247,15.73596269,156.3,156.26,15.73596269]
[1749060299149,15.73596269,156.31,156.26,15.73596269]
[1749060299437,15.73596269,156.29,156.24,34.66993469]
[1749060299672,15.73596269,156.26,156.21,15.73596269]
[1749060299840,26.0,156.28,156.22,18.79181043]
[1749060300051,15.73596269,156.27,156.22,34.52777312]
[1749060303071,15.73596269,156.26,156.22,18.79181043]
[1749060303369,15.73596269,156.26,156.22,34.52777312]
[1749060303864,15.73596269,156.27,156.22,34.52777312]
[1749060304167,15.73596269,156.26,156.22,34.52777312]
[1749060305567,1.5794,156.29,156.22,34.52777312]
[1749060305739,15.73596269,156.27,156.22,34.52777312]
[1749060306977,15.73596269,156.26,156.22,34.52777312]
[1749060307671,15.73596269,156.27,156.22,34.52777312]
[1749060309251,15.73596269,156.27,156.23,15.73596269]
[1749060310943,15.73596269,156.27,156.22,18.79181043]
[1749060311162,1.5794,156.29,156.22,15.73596269]
[1749060311163,15.73596269,156.26,156.22,15.73596269]
[1749060311362,15.73596269,156.25,156.21,18.79181043]
[1749060312271,15.73596269,156.25,156.21,34.52777312]
[1749060313051,15.73596269,156.26,156.21,34.52777312]
[1749060317368,27.5794,156.29,156.24,15.73596269]
[1749060317369,26.0,156.28,156.24,15.73596269]
[1749060317575,15.73596269,156.3,156.25,15.73596269]
[1749060317872,1.5986,156.33,156.29,15.73596269]
[1749060318076,17.33456269,156.33,156.29,15.73596269]
[1749060319383,15.73596269,156.34,156.29,15.73596269]
[1749060319702,15.73596269,156.34,156.3,15.73596269]
[1749060319857,22.35096269,156.35,156.3,15.73596269]
[1749060320057,22.35096269,156.35,156.31,15.73596269]
[1749060320482,15.73596269,156.35,156.31,15.73596269]
[1749060320875,1.5125,156.37,156.29,0.14216157]
[1749060320876,1.5125,156.37,156.33,15.73596269]
[1749060321174,15.73596269,156.37,156.33,15.73596269]
[1749060321380,15.73596269,156.38,156.33,15.73596269]
[1749060322182,32.1357,156.39,156.33,15.73596269]
[1749060322367,47.87166269,156.39,156.34,15.73596269]
[1749060322571,15.73596269,156.38,156.34,15.73596269]
[1749060323071,15.73596269,156.38,156.32,0.14216157]
[1749060323072,6.1357,156.39,156.35,15.73596269]
[1749060323393,15.73596269,156.38,156.34,15.73596269]
[1749060323899,15.73596269,156.37,156.31,18.79181043]
[1749060324069,15.73596269,156.36,156.31,34.52777312]
[1749060324470,15.73596269,156.36,156.31,15.73596269]
[1749060324694,15.73596269,156.35,156.31,15.73596269]
[1749060325575,15.73596269,156.36,156.31,15.73596269]
[1749060326175,15.73596269,156.33,156.29,26.0]
[1749060326383,15.73596269,156.33,156.29,41.73596269]
[1749060327069,15.73596269,156.34,156.29,41.73596269]
[1749060328064,15.73596269,156.33,156.29,26.0]
[1749060328389,15.73596269,156.33,156.29,41.73596269]
[1749060329173,0.28432314,156.38,156.29,26.0]
[1749060329487,15.73596269,156.34,156.3,15.73596269]
[1749060331775,15.73596269,156.32,156.25,0.42648471]
[1749060332007,1.6133,156.34,156.27,26.0]
[1749060332290,15.73596269,156.32,156.27,41.73596269]
[1749060333558,15.73596269,156.32,156.28,15.73596269]
[1749060333763,15.73596269,156.32,156.27,41.73596269]
[1749060333973,15.73596269,156.31,156.27,41.73596269]
[1749060334197,15.73596269,156.32,156.27,41.73596269]
[1749060338489,15.73596269,156.32,156.26,15.73596269]
[1749060338490,15.73596269,156.3,156.26,15.73596269]
[1749060339001,15.73596269,156.29,156.25,34.66993469]
[1749060340393,15.73596269,156.28,156.24,15.73596269]
[1749060340693,15.73596269,156.27,156.22,15.73596269]
[1749060341001,15.73596269,156.26,156.22,15.73596269]
[1749060341506,15.73596269,156.28,156.23,15.73596269]
[1749060341671,15.73596269,156.29,156.24,15.73596269]
[1749060343678,15.73596269,156.28,156.24,15.73596269]
[1749060344075,42.02028583,156.32,156.24,15.73596269]
[1749060344076,15.73596269,156.29,156.24,15.73596269]
[1749060346601,15.73596269,156.32,156.28,15.73596269]
[1749060347597,15.73596269,156.31,156.26,15.73596269]
[1749060350389,15.73596269,156.31,156.27,15.73596269]
[1749060352900,15.73596269,156.32,156.27,15.73596269]
[1749060353109,15.73596269,156.33,156.28,15.73596269]
[1749060353714,15.73596269,156.33,156.29,15.73596269]
[1749060355194,15.73596269,156.33,156.25,26.56864628]
[1749060355195,15.73596269,156.33,156.28,15.73596269]
[1749060357799,1.6133,156.34,156.29,15.73596269]
[1749060357983,17.34926269,156.34,156.29,15.73596269]
[1749060358173,1.6133,156.34,156.3,15.73596269]
[1749060358372,163.83596269,156.35,156.3,15.73596269]
[1749060360102,15.73596269,156.33,156.29,15.73596269]
[1749060360602,15.73596269,156.34,156.29,15.73596269]
[1749060365314,148.1,156.35,156.21,0.14216157]
[1749060365315,15.73596269,156.3,156.21,0.14216157]
[1749060365605,15.73596269,156.27,156.22,15.73596269]
[1749060365820,15.73596269,156.27,156.23,15.73596269]
[1749060366005,15.73596269,156.28,156.23,15.73596269]
[1749060366985,15.73596269,156.27,156.23,15.73596269]
[1749060369925,15.73596269,156.29,156.25,15.73596269]
[1749060370716,15.73596269,156.28,156.23,15.73596269]
[1749060370925,15.73596269,156.27,156.23,15.73596269]
[1749060372703,15.73596269,156.28,156.23,15.73596269]
[1749060375837,15.73596269,156.27,156.23,15.73596269]
[1749060376320,15.73596269,156.28,156.24,15.73596269]
[1749060379628,15.73596269,156.27,156.23,15.73596269]
[1749060380018,15.73596269,156.26,156.21,34.52777312]
[1749060380217,15.73596269,156.25,156.2,41.73596269]
[1749060380420,174.1,156.3,156.2,41.73596269]
[1749060380634,15.73596269,156.25,156.2,41.73596269]
[1749060381007,15.73596269,156.25,156.21,15.73596269]
[1749060381347,148.1,156.29,156.22,15.73596269]
[1749060381638,15.73596269,156.26,156.22,15.73596269]
[1749060384411,15.73596269,156.25,156.21,15.73596269]
[1749060385933,15.73596269,156.26,156.22,15.73596269]
[1749060387210,15.73596269,156.25,156.21,15.73596269]
[1749060387724,15.73596269,156.26,156.2,26.0]
[1749060387922,15.73596269,156.26,156.22,15.73596269]
[1749060389512,148.1,156.28,156.22,15.73596269]
[1749060389715,15.73596269,156.26,156.22,15.73596269]
[1749060390453,15.73596269,156.27,156.22,15.73596269]
[1749060390738,163.83596269,156.28,156.23,15.73596269]
[1749060391926,15.73596269,156.27,156.23,15.73596269]
[1749060392243,15.73596269,156.27,156.22,15.73596269]
[1749060393041,163.83596269,156.28,156.24,15.73596269]
[1749060394034,15.73596269,156.27,156.23,15.73596269]
[1749060398332,41.73596269,156.27,156.23,15.73596269]
[1749060399022,41.73596269,156.27,156.22,15.73596269]
[1749060399227,15.73596269,156.26,156.2,0.28432314]
[1749060399420,15.73596269,156.24,156.19,34.38561155]
[1749060399640,15.73596269,156.24,156.19,15.73596269]
[1749060400139,27.5072,156.27,156.18,18.79181043]
[1749060400140,15.73596269,156.23,156.18,18.79181043]
[1749060400349,15.73596269,156.23,156.19,15.73596269]
[1749060400733,15.73596269,156.24,156.19,15.73596269]
[1749060403423,15.73596269,156.23,156.19,15.73596269]
[1749060404056,15.73596269,156.23,156.18,34.52777312]
[1749060404432,15.73596269,156.23,156.19,15.73596269]
[1749060407740,6.429,156.25,156.2,15.73596269]
[1749060407930,6.429,156.25,156.21,15.73596269]
[1749060407931,15.73596269,156.25,156.21,15.73596269]
[1749060408437,15.73596269,156.25,156.2,15.73596269]
[1749060409958,15.73596269,156.24,156.2,15.73596269]
[1749060417746,27.5072,156.27,156.2,15.73596269]
[1749060417969,15.73596269,156.25,156.2,15.73596269]
[1749060418565,41.73596269,156.24,156.2,15.73596269]
[1749060420370,26.0,156.27,156.23,15.73596269]
[1749060420567,26.0,156.27,156.24,15.73596269]
[1749060420772,26.0,156.27,156.23,15.73596269]
[1749060423065,41.73596269,156.27,156.22,0.14216157]
[1749060423253,41.73596269,156.27,156.22,15.73596269]
[1749060423570,148.1,156.28,156.23,15.73596269]
[1749060423951,163.83596269,156.28,156.23,15.73596269]
[1749060424144,15.73596269,156.27,156.23,15.73596269]
[1749060425162,148.1,156.28,156.23,15.73596269]
[1749060425471,15.73596269,156.27,156.23,15.73596269]
[1749060425867,15.73596269,156.25,156.21,15.73596269]
[1749060426478,15.73596269,156.25,156.2,0.28432314]
[1749060426641,15.73596269,156.25,156.21,15.73596269]
[1749060428147,15.73596269,156.26,156.21,15.73596269]
[1749060428881,15.73596269,156.25,156.21,15.73596269]
[1749060429803,15.73596269,156.26,156.21,15.73596269]
[1749060430475,15.73596269,156.27,156.22,15.73596269]
[1749060431200,148.1,156.28,156.22,15.73596269]
[1749060431353,32.5272,156.29,156.22,15.73596269]
[1749060431354,15.73596269,156.27,156.22,15.73596269]
[1749060434300,15.73596269,156.26,156.2,0.28432314]
[1749060434451,32.5272,156.29,156.21,15.73596269]
[1749060434654,32.5272,156.29,156.2,0.28432314]
[1749060434655,15.73596269,156.26,156.22,15.73596269]
[1749060435380,10.05209876,156.26,156.22,10.05209876]
[1749060435961,10.05209876,156.26,156.21,10.05209876]
[1749060436156,10.05209876,156.24,156.2,10.3364219]
[1749060436686,10.05209876,156.22,156.19,18.64964886]
[1749060436978,10.05209876,156.2,156.17,18.64964886]
[1749060437182,27.85092314,156.27,156.16,0.14216157]
[1749060437479,27.85092314,156.27,156.13,6.274]
[1749060437480,15.71878449,156.17,156.13,15.71878449]
[1749060437689,15.71878449,156.17,156.14,0.14216157]
[1749060438056,15.71878449,156.16,156.13,0.14216157]
[1749060438252,15.71878449,156.16,156.13,18.79181043]
[1749060439771,15.71878449,156.17,156.13,18.79181043]
[1749060440865,15.71878449,156.17,156.12,41.86094606]
[1749060441958,15.71878449,156.18,156.14,15.71878449]
[1749060442158,15.71878449,156.2,156.16,15.71878449]
[1749060442489,22.01950763,156.24,156.18,15.71878449]
[1749060442490,15.71878449,156.23,156.18,15.71878449]
[1749060442671,21.73518449,156.24,156.19,15.71878449]